[Event "Titled Tuesday Blitz August 17 2021"]
[White "Kim, Yoon-Young"]
[Black "Terletsky, Oleg"]
[WhiteFideId "30908779"]
[BlackFideId "14116774"]
[WhiteElo "2109"]
[BlackElo "2073"]
[Result "1-0"]
[Round "01"]
[TimeControl "180+1"]
[Date "2021.08.18"]
[WhiteClock "0:00:22"]
[BlackClock "0:00:04"]

1. d4 {[%clk 0:02:58]}  Nf6 {[%clk 0:02:58]} 2. c4 {[%clk 0:02:57]}  g6 {[%clk 0:02:58]} 3. Nc3 {[%clk 0:02:57]}  Bg7 {[%clk 0:02:58]} 4. Nf3 {[%clk 0:02:54]}  O-O {[%clk 0:02:56]} 5. Bg5 {[%clk 0:02:45]}  c5 {[%clk 0:02:55]} 6. d5 {[%clk 0:02:43]}  h6 {[%clk 0:02:54]} 7. Bh4 {[%clk 0:02:43]}  d6 {[%clk 0:02:45]} 8. e3 {[%clk 0:02:41]}  e6 {[%clk 0:02:41]} 9. Bd3 {[%clk 0:02:28]}  exd5 {[%clk 0:02:41]} 10. cxd5 {[%clk 0:02:29]}  Na6 {[%clk 0:02:30]} 11. O-O {[%clk 0:02:16]}  Rb8 {[%clk 0:02:25]} 12. Bc4 {[%clk 0:01:31]}  Nc7 {[%clk 0:02:20]} 13. a4 {[%clk 0:01:31]}  Na6 {[%clk 0:02:18]} 14. h3 {[%clk 0:01:26]}  Nb4 {[%clk 0:02:16]} 15. Nd2 {[%clk 0:01:21]}  a6 {[%clk 0:02:09]} 16. a5 {[%clk 0:01:20]}  Re8 {[%clk 0:02:01]} 17. Re1 {[%clk 0:01:17]}  g5 {[%clk 0:01:51]} 18. Bg3 {[%clk 0:01:17]}  b5 {[%clk 0:01:31]} 19. axb6 {[%clk 0:01:17]}  Rxb6 {[%clk 0:01:30]} 20. Bf1 {[%clk 0:01:08]}  Rb8 {[%clk 0:00:27]} 21. Nc4 {[%clk 0:00:56]}  Bf8 {[%clk 0:00:27]} 22. e4 {[%clk 0:00:55]}  Qc7 {[%clk 0:00:21]} 23. e5 {[%clk 0:00:46]}  dxe5 {[%clk 0:00:20]} 24. Bxe5 {[%clk 0:00:47]}  Rxe5 {[%clk 0:00:15]} 25. Rxe5 {[%clk 0:00:37]}  Bd6 {[%clk 0:00:14]} 26. Nxd6 {[%clk 0:00:35]}  Qxd6 {[%clk 0:00:14]} 27. Re3 {[%clk 0:00:35]}  Bf5 {[%clk 0:00:13]} 28. Rc1 {[%clk 0:00:26]}  Rc8 {[%clk 0:00:09]} 29. Qf3 {[%clk 0:00:25]}  Bg6 {[%clk 0:00:07]} 30. Qg3 {[%clk 0:00:26]}  Qxg3 {[%clk 0:00:07]} 31. Rxg3 {[%clk 0:00:26]}  c4 {[%clk 0:00:06]} 32. Na4 {[%clk 0:00:25]}  Nfxd5 {[%clk 0:00:05]} 33. Rxc4 {[%clk 0:00:25]}  Rxc4 {[%clk 0:00:03]} 34. Bxc4 {[%clk 0:00:25]}  Nf4 {[%clk 0:00:03]} 35. Rb3 {[%clk 0:00:22]}  a5 {[%clk 0:00:03]} 36. Re3 {[%clk 0:00:23]}  Bf5 {[%clk 0:00:02]} 37. Re5 {[%clk 0:00:22]}  Be6 {[%clk 0:00:03]} 38. Bxe6 {[%clk 0:00:22]}  Nxe6 {[%clk 0:00:03]} 39. Rxa5 {[%clk 0:00:23]}  Nd3 {[%clk 0:00:03]} 40. Ra8+ {[%clk 0:00:20]}  Kg7 {[%clk 0:00:03]} 41. Rc8 {[%clk 0:00:19]}  Nef4 {[%clk 0:00:04]} 42. Kf1 {[%clk 0:00:19]}  Nb4 {[%clk 0:00:03]} 43. Rc4 {[%clk 0:00:19]}  Nfd5 {[%clk 0:00:02]} 44. Nc3 {[%clk 0:00:18]}  Nxc3 {[%clk 0:00:02]} 45. Rxc3 {[%clk 0:00:19]}  Nd5 {[%clk 0:00:01]} 46. Rc1 {[%clk 0:00:19]}  Kf6 {[%clk 0:00:01]} 47. Rb1 {[%clk 0:00:20]}  Ke6 {[%clk 0:00:01]} 48. b4 {[%clk 0:00:19]}  Kd6 {[%clk 0:00:02]} 49. Ke2 {[%clk 0:00:20]}  Kc6 {[%clk 0:00:03]} 50. Kd3 {[%clk 0:00:20]}  Kb5 {[%clk 0:00:03]} 51. Kd4 {[%clk 0:00:20]}  Nxb4 {[%clk 0:00:04]} 52. Ke5 {[%clk 0:00:20]}  Kc4 {[%clk 0:00:04]} 53. Kf6 {[%clk 0:00:20]}  Nd3 {[%clk 0:00:05]} 54. Rf1 {[%clk 0:00:21]}  Kd4 {[%clk 0:00:04]} 55. Kxf7 {[%clk 0:00:21]}  Ke4 {[%clk 0:00:03]} 56. Kg6 {[%clk 0:00:21]}  Nf4+ {[%clk 0:00:04]} 57. Kxh6 {[%clk 0:00:21]}  Nxg2 {[%clk 0:00:05]} 58. Kxg5 {[%clk 0:00:22]}  Kf3 {[%clk 0:00:04]} 59. h4 {[%clk 0:00:20]}  Ke2 {[%clk 0:00:04]} 60. Ra1 {[%clk 0:00:20]}  Kxf2 {[%clk 0:00:05]} 61. Ra2+ {[%clk 0:00:21]}  Kf3 {[%clk 0:00:04]} 62. Rxg2 {[%clk 0:00:22]}  Kxg2 {[%clk 0:00:04]} 63. h5 {[%clk 0:00:22]} 1-0


[Site "https://www.chess.com"]

[Event "Titled Tuesday Blitz August 17 2021"]
[White "Klimciauskas, Domantas"]
[Black "Amburgy, Ryan"]
[WhiteFideId "12802999"]
[BlackFideId "30924820"]
[WhiteElo "2253"]
[BlackElo "2066"]
[Result "1/2-1/2"]
[Round "01"]
[TimeControl "180+1"]
[Date "2021.08.18"]
[WhiteClock "0:00:03"]
[BlackClock "0:00:29"]

1. c4 {[%clk 0:03:00]}  e5 {[%clk 0:02:59]} 2. Nc3 {[%clk 0:03:00]}  Nf6 {[%clk 0:03:00]} 3. g3 {[%clk 0:03:00]}  d5 {[%clk 0:03:00]} 4. cxd5 {[%clk 0:03:00]}  Nxd5 {[%clk 0:03:01]} 5. Bg2 {[%clk 0:03:01]}  Nb6 {[%clk 0:03:02]} 6. Nf3 {[%clk 0:02:57]}  Nc6 {[%clk 0:03:02]} 7. O-O {[%clk 0:02:57]}  Be7 {[%clk 0:03:03]} 8. d3 {[%clk 0:02:56]}  O-O {[%clk 0:03:03]} 9. a3 {[%clk 0:02:56]}  Be6 {[%clk 0:03:02]} 10. b4 {[%clk 0:02:55]}  f6 {[%clk 0:03:00]} 11. Be3 {[%clk 0:02:50]}  Nd5 {[%clk 0:02:57]} 12. Nxd5 {[%clk 0:02:41]}  Bxd5 {[%clk 0:02:58]} 13. Qc2 {[%clk 0:02:35]}  a5 {[%clk 0:02:46]} 14. b5 {[%clk 0:02:34]}  Na7 {[%clk 0:02:46]} 15. a4 {[%clk 0:02:16]}  Nc8 {[%clk 0:02:33]} 16. Rfc1 {[%clk 0:02:10]}  c6 {[%clk 0:02:28]} 17. bxc6 {[%clk 0:02:00]}  bxc6 {[%clk 0:02:27]} 18. Bc5 {[%clk 0:01:53]}  Nd6 {[%clk 0:02:05]} 19. Rab1 {[%clk 0:01:47]}  Qd7 {[%clk 0:01:55]} 20. Rb2 {[%clk 0:01:40]}  Rab8 {[%clk 0:01:41]} 21. Rcb1 {[%clk 0:01:32]}  Rxb2 {[%clk 0:01:42]} 22. Rxb2 {[%clk 0:01:29]}  Rd8 {[%clk 0:01:20]} 23. Qc3 {[%clk 0:01:19]}  Nb7 {[%clk 0:01:18]} 24. Bb6 {[%clk 0:01:11]}  Bb4 {[%clk 0:01:18]} 25. Qc2 {[%clk 0:00:59]}  Re8 {[%clk 0:01:13]} 26. Nd2 {[%clk 0:00:54]}  Nd6 {[%clk 0:01:05]} 27. Bc5 {[%clk 0:00:35]}  Rb8 {[%clk 0:01:04]} 28. Bxb4 {[%clk 0:00:20]}  axb4 {[%clk 0:00:34]} 29. Bxd5+ {[%clk 0:00:19]}  cxd5 {[%clk 0:00:35]} 30. Qc5 {[%clk 0:00:19]}  Nf5 {[%clk 0:00:23]} 31. Rxb4 {[%clk 0:00:18]}  Rxb4 {[%clk 0:00:24]} 32. Qxb4 {[%clk 0:00:18]}  Nd4 {[%clk 0:00:25]} 33. e3 {[%clk 0:00:14]}  Nc6 {[%clk 0:00:22]} 34. Qb3 {[%clk 0:00:13]}  Kf7 {[%clk 0:00:21]} 35. e4 {[%clk 0:00:13]}  Ke6 {[%clk 0:00:20]} 36. exd5+ {[%clk 0:00:12]}  Qxd5 {[%clk 0:00:21]} 37. Kf1 {[%clk 0:00:11]}  Qxb3 {[%clk 0:00:19]} 38. Nxb3 {[%clk 0:00:11]}  Kd5 {[%clk 0:00:19]} 39. Ke2 {[%clk 0:00:11]}  Nb4 {[%clk 0:00:16]} 40. Ke3 {[%clk 0:00:10]}  f5 {[%clk 0:00:17]} 41. f3 {[%clk 0:00:07]}  g5 {[%clk 0:00:16]} 42. h3 {[%clk 0:00:05]}  h6 {[%clk 0:00:17]} 43. Na5 {[%clk 0:00:04]}  Nc2+ {[%clk 0:00:17]} 44. Kd2 {[%clk 0:00:03]}  Nd4 {[%clk 0:00:17]} 45. Ke3 {[%clk 0:00:04]}  f4+ {[%clk 0:00:15]} 46. gxf4 {[%clk 0:00:04]}  gxf4+ {[%clk 0:00:16]} 47. Kf2 {[%clk 0:00:04]}  Kc5 {[%clk 0:00:16]} 48. Nc4 {[%clk 0:00:04]}  Nc6 {[%clk 0:00:15]} 49. Kg2 {[%clk 0:00:01]}  Kd4 {[%clk 0:00:16]} 50. h4 {[%clk 0:00:01]}  Kxd3 {[%clk 0:00:16]} 51. Nd6 {[%clk 0:00:02]}  Ke3 {[%clk 0:00:16]} 52. Nf5+ {[%clk 0:00:02]}  Ke2 {[%clk 0:00:16]} 53. Nxh6 {[%clk 0:00:03]}  Nd4 {[%clk 0:00:17]} 54. Nf5 {[%clk 0:00:03]}  Nxf5 {[%clk 0:00:17]} 55. a5 {[%clk 0:00:03]}  Ne3+ {[%clk 0:00:17]} 56. Kh3 {[%clk 0:00:03]}  Kxf3 {[%clk 0:00:18]} 57. a6 {[%clk 0:00:03]}  Nd5 {[%clk 0:00:18]} 58. a7 {[%clk 0:00:04]}  Nc7 {[%clk 0:00:18]} 59. h5 {[%clk 0:00:05]}  e4 {[%clk 0:00:19]} 60. h6 {[%clk 0:00:06]}  e3 {[%clk 0:00:20]} 61. h7 {[%clk 0:00:06]}  e2 {[%clk 0:00:21]} 62. h8=Q {[%clk 0:00:06]}  e1=Q {[%clk 0:00:22]} 63. Qh5+ {[%clk 0:00:07]}  Kf2 {[%clk 0:00:20]} 64. Qh4+ {[%clk 0:00:07]}  Kf1 {[%clk 0:00:21]} 65. Qxf4+ {[%clk 0:00:04]}  Ke2 {[%clk 0:00:22]} 66. Qxc7 {[%clk 0:00:04]}  Qh1+ {[%clk 0:00:22]} 67. Kg4 {[%clk 0:00:04]}  Qg2+ {[%clk 0:00:22]} 68. Kf5 {[%clk 0:00:04]}  Qh3+ {[%clk 0:00:22]} 69. Kf6 {[%clk 0:00:04]}  Qh6+ {[%clk 0:00:23]} 70. Ke7 {[%clk 0:00:03]}  Qg7+ {[%clk 0:00:23]} 71. Kd6 {[%clk 0:00:04]}  Qg3+ {[%clk 0:00:23]} 72. Kc6 {[%clk 0:00:04]}  Qc3+ {[%clk 0:00:24]} 73. Kd7 {[%clk 0:00:04]}  Qg7+ {[%clk 0:00:24]} 74. Kc8 {[%clk 0:00:05]}  Qf8+ {[%clk 0:00:23]} 75. Kb7 {[%clk 0:00:04]}  Qb4+ {[%clk 0:00:23]} 76. Qb6 {[%clk 0:00:05]}  Qe7+ {[%clk 0:00:24]} 77. Ka6 {[%clk 0:00:05]}  Qa3+ {[%clk 0:00:24]} 78. Qa5 {[%clk 0:00:04]}  Qd6+ {[%clk 0:00:24]} 79. Qb6 {[%clk 0:00:05]}  Qa3+ {[%clk 0:00:24]} 80. Kb5 {[%clk 0:00:05]}  Qb3+ {[%clk 0:00:24]} 81. Kc6 {[%clk 0:00:05]}  Qe6+ {[%clk 0:00:25]} 82. Kb7 {[%clk 0:00:05]}  Qd7+ {[%clk 0:00:25]} 83. Qc7 {[%clk 0:00:06]}  Qb5+ {[%clk 0:00:26]} 84. Kc8 {[%clk 0:00:05]}  Qe8+ {[%clk 0:00:26]} 85. Kb7 {[%clk 0:00:05]}  Qb5+ {[%clk 0:00:27]} 86. Qb6 {[%clk 0:00:06]}  Qd7+ {[%clk 0:00:28]} 87. Ka6 {[%clk 0:00:05]}  Qa4+ {[%clk 0:00:28]} 88. Kb7 {[%clk 0:00:03]}  Qd7+ {[%clk 0:00:29]} 1/2-1/2


[Site "https://www.chess.com"]

[Event "Titled Tuesday Blitz August 17 2021"]
[White "Kovacsy, Barnabas"]
[Black "Maximov, Dmitry"]
[WhiteFideId "769290"]
[BlackFideId "14105659"]
[WhiteElo "1938"]
[BlackElo "2494"]
[Result "0-1"]
[Round "01"]
[TimeControl "180+1"]
[Date "2021.08.17"]
[WhiteClock "0:00:22"]
[BlackClock "0:00:43"]

1. e4 {[%clk 0:02:59]}  c5 {[%clk 0:02:59]} 2. Nf3 {[%clk 0:02:58]}  d6 {[%clk 0:03:00]} 3. d4 {[%clk 0:02:58]}  cxd4 {[%clk 0:03:00]} 4. Nxd4 {[%clk 0:02:59]}  Nf6 {[%clk 0:03:01]} 5. f3 {[%clk 0:02:59]}  e6 {[%clk 0:02:58]} 6. c4 {[%clk 0:02:58]}  Be7 {[%clk 0:02:56]} 7. Nc3 {[%clk 0:02:55]}  O-O {[%clk 0:02:56]} 8. Be3 {[%clk 0:02:42]}  Nc6 {[%clk 0:02:55]} 9. Qd2 {[%clk 0:02:40]}  d5 {[%clk 0:02:54]} 10. Nxc6 {[%clk 0:02:24]}  bxc6 {[%clk 0:02:53]} 11. cxd5 {[%clk 0:02:24]}  cxd5 {[%clk 0:02:52]} 12. exd5 {[%clk 0:02:22]}  Nxd5 {[%clk 0:02:47]} 13. Nxd5 {[%clk 0:02:21]}  exd5 {[%clk 0:02:47]} 14. Bd3 {[%clk 0:02:14]}  Rb8 {[%clk 0:02:42]} 15. O-O {[%clk 0:02:11]}  Bf6 {[%clk 0:02:41]} 16. Rab1 {[%clk 0:02:09]}  a5 {[%clk 0:02:30]} 17. Rfd1 {[%clk 0:01:59]}  Re8 {[%clk 0:02:30]} 18. Bf4 {[%clk 0:01:54]}  Rb4 {[%clk 0:02:29]} 19. Kh1 {[%clk 0:01:47]}  Qb6 {[%clk 0:02:16]} 20. Re1 {[%clk 0:01:39]}  Be6 {[%clk 0:02:14]} 21. b3 {[%clk 0:01:37]}  h6 {[%clk 0:01:53]} 22. Be5 {[%clk 0:01:24]}  Bxe5 {[%clk 0:01:39]} 23. Rxe5 {[%clk 0:01:25]}  Rc8 {[%clk 0:01:37]} 24. Rbe1 {[%clk 0:01:19]}  a4 {[%clk 0:01:32]} 25. bxa4 {[%clk 0:01:17]}  Rxa4 {[%clk 0:01:33]} 26. Bf5 {[%clk 0:00:57]}  Bxf5 {[%clk 0:01:23]} 27. Rxf5 {[%clk 0:00:58]}  d4 {[%clk 0:01:16]} 28. Rfe5 {[%clk 0:00:57]}  Qg6 {[%clk 0:01:07]} 29. R5e4 {[%clk 0:00:49]}  Rd8 {[%clk 0:01:00]} 30. Qc2 {[%clk 0:00:40]}  Raa8 {[%clk 0:01:00]} 31. a4 {[%clk 0:00:34]}  Kh7 {[%clk 0:00:55]} 32. Rd1 {[%clk 0:00:31]}  Rac8 {[%clk 0:00:48]} 33. Qd2 {[%clk 0:00:28]}  d3 {[%clk 0:00:46]} 34. a5 {[%clk 0:00:23]}  Rc2 {[%clk 0:00:45]} 35. Qe3 {[%clk 0:00:22]}  Qxg2# {[%clk 0:00:43]} 0-1


[Site "https://www.chess.com"]

[Event "Titled Tuesday Blitz August 17 2021"]
[White "Kovalev, Vladislav"]
[Black "Krasilnikov, Evgeni"]
[WhiteFideId "13504398"]
[BlackFideId "4139739"]
[WhiteElo "2573"]
[BlackElo "2295"]
[Result "1-0"]
[Round "01"]
[TimeControl "180+1"]
[Date "2021.08.17"]
[WhiteClock "0:00:09"]
[BlackClock "0:00:01"]

1. e4 {[%clk 0:03:00]}  c6 {[%clk 0:02:59]} 2. d3 {[%clk 0:02:59]}  d5 {[%clk 0:02:59]} 3. Nf3 {[%clk 0:02:59]}  Qc7 {[%clk 0:02:58]} 4. Nc3 {[%clk 0:02:54]}  Nf6 {[%clk 0:02:54]} 5. e5 {[%clk 0:02:50]}  Nfd7 {[%clk 0:02:53]} 6. Bf4 {[%clk 0:02:50]}  e6 {[%clk 0:02:52]} 7. g3 {[%clk 0:02:44]}  a6 {[%clk 0:02:49]} 8. h4 {[%clk 0:02:41]}  c5 {[%clk 0:02:49]} 9. Bh3 {[%clk 0:02:39]}  Qb6 {[%clk 0:02:41]} 10. Rb1 {[%clk 0:02:34]}  Nc6 {[%clk 0:02:40]} 11. O-O {[%clk 0:02:33]}  Be7 {[%clk 0:02:37]} 12. h5 {[%clk 0:02:33]}  h6 {[%clk 0:02:36]} 13. Qe2 {[%clk 0:02:13]}  Nd4 {[%clk 0:02:35]} 14. Nxd4 {[%clk 0:02:13]}  cxd4 {[%clk 0:02:36]} 15. Nd1 {[%clk 0:02:12]}  Nc5 {[%clk 0:02:34]} 16. Bd2 {[%clk 0:02:01]}  Bd7 {[%clk 0:02:33]} 17. b3 {[%clk 0:01:53]}  Qc7 {[%clk 0:02:18]} 18. f4 {[%clk 0:01:42]}  Rc8 {[%clk 0:02:02]} 19. Be1 {[%clk 0:01:40]}  b5 {[%clk 0:01:43]} 20. Bf2 {[%clk 0:01:38]}  Nb7 {[%clk 0:01:43]} 21. Bxd4 {[%clk 0:01:17]}  Qxc2 {[%clk 0:01:42]} 22. Qxc2 {[%clk 0:01:18]}  Rxc2 {[%clk 0:01:42]} 23. Rf2 {[%clk 0:01:18]}  Rxf2 {[%clk 0:01:38]} 24. Kxf2 {[%clk 0:01:19]}  Bc5 {[%clk 0:01:35]} 25. Bxc5 {[%clk 0:01:13]}  Nxc5 {[%clk 0:01:35]} 26. Ke3 {[%clk 0:01:13]}  Ke7 {[%clk 0:01:35]} 27. Rc1 {[%clk 0:01:13]}  Rc8 {[%clk 0:01:33]} 28. d4 {[%clk 0:01:01]}  Nb7 {[%clk 0:01:27]} 29. Rxc8 {[%clk 0:01:01]}  Bxc8 {[%clk 0:01:27]} 30. b4 {[%clk 0:00:49]}  Nd8 {[%clk 0:01:15]} 31. Nf2 {[%clk 0:00:48]}  Nc6 {[%clk 0:01:13]} 32. Nd3 {[%clk 0:00:49]}  Bb7 {[%clk 0:00:58]} 33. a3 {[%clk 0:00:49]}  Bc8 {[%clk 0:00:58]} 34. g4 {[%clk 0:00:48]}  Kd8 {[%clk 0:00:54]} 35. Bf1 {[%clk 0:00:47]}  Ke7 {[%clk 0:00:54]} 36. Nc5 {[%clk 0:00:47]}  Kd8 {[%clk 0:00:53]} 37. Bd3 {[%clk 0:00:47]}  Ke7 {[%clk 0:00:53]} 38. Be2 {[%clk 0:00:40]}  Kd8 {[%clk 0:00:51]} 39. Kd3 {[%clk 0:00:40]}  Ke7 {[%clk 0:00:50]} 40. Kc3 {[%clk 0:00:41]}  Kd8 {[%clk 0:00:50]} 41. a4 {[%clk 0:00:40]}  Na7 {[%clk 0:00:39]} 42. a5 {[%clk 0:00:28]}  Nc6 {[%clk 0:00:36]} 43. Bd3 {[%clk 0:00:28]}  Ke7 {[%clk 0:00:35]} 44. f5 {[%clk 0:00:22]}  Nd8 {[%clk 0:00:34]} 45. Kd2 {[%clk 0:00:16]}  Nc6 {[%clk 0:00:33]} 46. Kc3 {[%clk 0:00:15]}  Nd8 {[%clk 0:00:33]} 47. Bc2 {[%clk 0:00:16]}  Nc6 {[%clk 0:00:33]} 48. Nd3 {[%clk 0:00:15]}  Nd8 {[%clk 0:00:32]} 49. Nf4 {[%clk 0:00:16]}  Nc6 {[%clk 0:00:32]} 50. fxe6 {[%clk 0:00:11]}  fxe6 {[%clk 0:00:31]} 51. Nd3 {[%clk 0:00:12]}  Nd8 {[%clk 0:00:30]} 52. Kd2 {[%clk 0:00:11]}  Nc6 {[%clk 0:00:29]} 53. Ke3 {[%clk 0:00:12]}  Nd8 {[%clk 0:00:29]} 54. Bd1 {[%clk 0:00:12]}  Nc6 {[%clk 0:00:29]} 55. Be2 {[%clk 0:00:12]}  Nd8 {[%clk 0:00:29]} 56. Kd2 {[%clk 0:00:13]}  Nc6 {[%clk 0:00:29]} 57. Kc3 {[%clk 0:00:14]}  Kf7 {[%clk 0:00:28]} 58. Nc5 {[%clk 0:00:13]}  Ke7 {[%clk 0:00:28]} 59. Bd3 {[%clk 0:00:13]}  Kf7 {[%clk 0:00:28]} 60. Bg6+ {[%clk 0:00:14]}  Ke7 {[%clk 0:00:28]} 61. Nb3 {[%clk 0:00:15]}  Nd8 {[%clk 0:00:27]} 62. Bh7 {[%clk 0:00:15]}  Nc6 {[%clk 0:00:27]} 63. Nd2 {[%clk 0:00:13]}  Kf8 {[%clk 0:00:26]} 64. Nf3 {[%clk 0:00:14]}  Ke7 {[%clk 0:00:26]} 65. Nh4 {[%clk 0:00:14]}  Kf8 {[%clk 0:00:26]} 66. Ng6+ {[%clk 0:00:13]}  Kf7 {[%clk 0:00:26]} 67. Nf4 {[%clk 0:00:14]}  Kf8 {[%clk 0:00:26]} 68. Bg6 {[%clk 0:00:14]}  Ke7 {[%clk 0:00:25]} 69. Bd3 {[%clk 0:00:14]}  Kf8 {[%clk 0:00:25]} 70. Be2 {[%clk 0:00:15]}  Ke7 {[%clk 0:00:25]} 71. Nh3 {[%clk 0:00:15]}  Kf8 {[%clk 0:00:25]} 72. g5 {[%clk 0:00:16]}  hxg5 {[%clk 0:00:23]} 73. Nxg5 {[%clk 0:00:17]}  Ke7 {[%clk 0:00:22]} 74. Bg4 {[%clk 0:00:17]}  Bd7 {[%clk 0:00:22]} 75. Nh3 {[%clk 0:00:17]}  Bc8 {[%clk 0:00:21]} 76. Bd1 {[%clk 0:00:18]}  Bd7 {[%clk 0:00:21]} 77. Be2 {[%clk 0:00:18]}  Bc8 {[%clk 0:00:21]} 78. Bg4 {[%clk 0:00:19]}  Bd7 {[%clk 0:00:21]} 79. Nf4 {[%clk 0:00:20]}  Ke8 {[%clk 0:00:18]} 80. Bh3 {[%clk 0:00:20]}  Ke7 {[%clk 0:00:18]} 81. Bg4 {[%clk 0:00:20]}  Nd8 {[%clk 0:00:18]} 82. Ng6+ {[%clk 0:00:20]}  Ke8 {[%clk 0:00:17]} 83. Bf3 {[%clk 0:00:18]}  Nc6 {[%clk 0:00:16]} 84. Be2 {[%clk 0:00:19]}  Nd8 {[%clk 0:00:16]} 85. Nf4 {[%clk 0:00:19]}  Nc6 {[%clk 0:00:16]} 86. Bd3 {[%clk 0:00:20]}  Nd8 {[%clk 0:00:15]} 87. Bf1 {[%clk 0:00:20]}  Nc6 {[%clk 0:00:15]} 88. Bh3 {[%clk 0:00:21]}  Nd8 {[%clk 0:00:15]} 89. Bg4 {[%clk 0:00:21]}  Ke7 {[%clk 0:00:15]} 90. Nd3 {[%clk 0:00:20]}  Ke8 {[%clk 0:00:14]} 91. Nc5 {[%clk 0:00:21]}  Bc8 {[%clk 0:00:14]} 92. Kd3 {[%clk 0:00:14]}  Ke7 {[%clk 0:00:13]} 93. Ke3 {[%clk 0:00:14]}  Nc6 {[%clk 0:00:13]} 94. Nd3 {[%clk 0:00:14]}  Nd8 {[%clk 0:00:13]} 95. Nf4 {[%clk 0:00:14]}  Nc6 {[%clk 0:00:13]} 96. Nxd5+ {[%clk 0:00:14]}  exd5 {[%clk 0:00:12]} 97. Bxc8 {[%clk 0:00:14]}  Nxb4 {[%clk 0:00:12]} 98. Bb7 {[%clk 0:00:04]}  Kd7 {[%clk 0:00:12]} 99. Kf4 {[%clk 0:00:05]}  Ke6 {[%clk 0:00:10]} 100. Kg5 {[%clk 0:00:03]}  Nc2 {[%clk 0:00:10]} 101. Bc8+ {[%clk 0:00:04]}  Ke7 {[%clk 0:00:09]} 102. Bxa6 {[%clk 0:00:04]}  Nxd4 {[%clk 0:00:09]} 103. Bb7 {[%clk 0:00:05]}  Kd7 {[%clk 0:00:08]} 104. a6 {[%clk 0:00:06]}  Ne6+ {[%clk 0:00:07]} 105. Kg6 {[%clk 0:00:05]}  d4 {[%clk 0:00:06]} 106. a7 {[%clk 0:00:05]}  Nc7 {[%clk 0:00:06]} 107. Kxg7 {[%clk 0:00:04]}  d3 {[%clk 0:00:06]} 108. Bf3 {[%clk 0:00:04]}  d2 {[%clk 0:00:05]} 109. Bd1 {[%clk 0:00:05]}  Ke6 {[%clk 0:00:03]} 110. h6 {[%clk 0:00:06]}  Kxe5 {[%clk 0:00:03]} 111. h7 {[%clk 0:00:07]}  b4 {[%clk 0:00:03]} 112. h8=Q {[%clk 0:00:07]}  Kd4 {[%clk 0:00:03]} 113. Kf7+ {[%clk 0:00:07]}  Kc4 {[%clk 0:00:02]} 114. Qe5 {[%clk 0:00:07]}  Na8 {[%clk 0:00:01]} 115. Qb8 {[%clk 0:00:07]}  Kc3 {[%clk 0:00:01]} 116. Qxa8 {[%clk 0:00:08]}  Kb2 {[%clk 0:00:01]} 117. Qe4 {[%clk 0:00:08]}  Kc1 {[%clk 0:00:01]} 118. Qc2# {[%clk 0:00:09]} 1-0


[Site "https://www.chess.com"]

[Event "Titled Tuesday Blitz August 17 2021"]
[White "Kropff, Ricardo"]
[Black "Maevsky, Nikolay"]
[WhiteFideId "3700038"]
[BlackFideId "4198220"]
[WhiteElo "2164"]
[BlackElo "2213"]
[Result "0-1"]
[Round "01"]
[TimeControl "180+1"]
[Date "2021.08.18"]
[WhiteClock "0:00:12"]
[BlackClock "0:00:09"]

1. Nf3 {[%clk 0:02:58]}  Nf6 {[%clk 0:02:58]} 2. c4 {[%clk 0:02:56]}  e6 {[%clk 0:02:58]} 3. g3 {[%clk 0:02:56]}  b6 {[%clk 0:02:56]} 4. Bg2 {[%clk 0:02:55]}  Bb7 {[%clk 0:02:55]} 5. O-O {[%clk 0:02:55]}  c5 {[%clk 0:02:56]} 6. Nc3 {[%clk 0:02:55]}  Be7 {[%clk 0:02:55]} 7. Re1 {[%clk 0:02:55]}  Ne4 {[%clk 0:02:47]} 8. Nxe4 {[%clk 0:02:54]}  Bxe4 {[%clk 0:02:47]} 9. d3 {[%clk 0:02:55]}  Bb7 {[%clk 0:02:47]} 10. e4 {[%clk 0:02:55]}  d6 {[%clk 0:02:47]} 11. d4 {[%clk 0:02:54]}  cxd4 {[%clk 0:02:48]} 12. Nxd4 {[%clk 0:02:55]}  a6 {[%clk 0:02:48]} 13. b3 {[%clk 0:02:53]}  Qc7 {[%clk 0:02:48]} 14. Be3 {[%clk 0:02:51]}  Nd7 {[%clk 0:02:47]} 15. Rc1 {[%clk 0:02:51]}  O-O {[%clk 0:02:47]} 16. f4 {[%clk 0:02:44]}  Rfd8 {[%clk 0:02:47]} 17. Bf2 {[%clk 0:02:42]}  Rac8 {[%clk 0:02:46]} 18. Qd2 {[%clk 0:02:40]}  Qb8 {[%clk 0:02:44]} 19. g4 {[%clk 0:02:36]}  Ne5 {[%clk 0:02:26]} 20. Qe2 {[%clk 0:02:27]}  Nc6 {[%clk 0:02:18]} 21. Nf3 {[%clk 0:02:15]}  Ba8 {[%clk 0:02:12]} 22. a4 {[%clk 0:02:10]}  Na5 {[%clk 0:02:09]} 23. Rb1 {[%clk 0:02:08]}  Bf8 {[%clk 0:02:04]} 24. g5 {[%clk 0:02:07]}  d5 {[%clk 0:02:02]} 25. cxd5 {[%clk 0:02:01]}  exd5 {[%clk 0:02:02]} 26. e5 {[%clk 0:02:01]}  Bb4 {[%clk 0:01:58]} 27. Rec1 {[%clk 0:01:58]}  Qb7 {[%clk 0:01:51]} 28. Nd4 {[%clk 0:01:56]}  Qd7 {[%clk 0:01:41]} 29. f5 {[%clk 0:01:50]}  g6 {[%clk 0:01:36]} 30. e6 {[%clk 0:01:50]}  fxe6 {[%clk 0:01:36]} 31. fxe6 {[%clk 0:01:39]}  Qe7 {[%clk 0:01:32]} 32. Be3 {[%clk 0:01:34]}  Nc6 {[%clk 0:01:24]} 33. Rf1 {[%clk 0:01:24]}  Ne5 {[%clk 0:00:53]} 34. Rf6 {[%clk 0:01:15]}  Rc3 {[%clk 0:00:39]} 35. Rbf1 {[%clk 0:01:07]}  Bc5 {[%clk 0:00:34]} 36. Rf7 {[%clk 0:01:00]}  Nxf7 {[%clk 0:00:29]} 37. Rxf7 {[%clk 0:00:50]}  Qd6 {[%clk 0:00:20]} 38. Qf2 {[%clk 0:00:42]}  Qe5 {[%clk 0:00:12]} 39. e7 {[%clk 0:00:24]}  Bxe7 {[%clk 0:00:12]} 40. Bf4 {[%clk 0:00:21]}  Rc1+ {[%clk 0:00:05]} 41. Bxc1 {[%clk 0:00:20]}  Bd6 {[%clk 0:00:04]} 42. Bf4 {[%clk 0:00:16]}  Qe8 {[%clk 0:00:04]} 43. Bxd6 {[%clk 0:00:14]}  Rxd6 {[%clk 0:00:05]} 44. Rf6 {[%clk 0:00:13]}  Rd8 {[%clk 0:00:04]} 45. Ne6 {[%clk 0:00:10]}  Rc8 {[%clk 0:00:03]} 46. Qf4 {[%clk 0:00:07]}  Bc6 {[%clk 0:00:03]} 47. Qe5 {[%clk 0:00:07]}  Bd7 {[%clk 0:00:03]} 48. Rxg6+ {[%clk 0:00:05]}  Qxg6 {[%clk 0:00:02]} 49. Bxd5 {[%clk 0:00:04]}  Bxe6 {[%clk 0:00:03]} 50. Bxe6+ {[%clk 0:00:03]}  Kf8 {[%clk 0:00:03]} 51. Qd6+ {[%clk 0:00:03]}  Kg7 {[%clk 0:00:02]} 52. Qe7+ {[%clk 0:00:03]}  Kh8 {[%clk 0:00:02]} 53. Bxc8 {[%clk 0:00:03]}  Qb1+ {[%clk 0:00:02]} 54. Kg2 {[%clk 0:00:03]}  Qb2+ {[%clk 0:00:02]} 55. Kg3 {[%clk 0:00:03]}  Qxb3+ {[%clk 0:00:03]} 56. Kg4 {[%clk 0:00:04]}  Qc4+ {[%clk 0:00:03]} 57. Kh5 {[%clk 0:00:04]}  Qxc8 {[%clk 0:00:03]} 58. Kh6 {[%clk 0:00:04]}  Qc6+ {[%clk 0:00:03]} 59. Qf6+ {[%clk 0:00:04]}  Qxf6+ {[%clk 0:00:04]} 60. gxf6 {[%clk 0:00:05]}  Kg8 {[%clk 0:00:04]} 61. Kg5 {[%clk 0:00:05]}  Kf7 {[%clk 0:00:04]} 62. Kf5 {[%clk 0:00:05]}  b5 {[%clk 0:00:04]} 63. Ke5 {[%clk 0:00:06]}  bxa4 {[%clk 0:00:04]} 64. Kd4 {[%clk 0:00:06]}  Kxf6 {[%clk 0:00:04]} 65. Kc4 {[%clk 0:00:06]}  Kg5 {[%clk 0:00:05]} 66. Kb4 {[%clk 0:00:06]}  h5 {[%clk 0:00:05]} 67. Kxa4 {[%clk 0:00:06]}  Kh4 {[%clk 0:00:06]} 68. Ka5 {[%clk 0:00:07]}  Kh3 {[%clk 0:00:06]} 69. Kxa6 {[%clk 0:00:08]}  h4 {[%clk 0:00:07]} 70. Kb5 {[%clk 0:00:08]}  Kxh2 {[%clk 0:00:07]} 71. Kc4 {[%clk 0:00:09]}  Kg2 {[%clk 0:00:08]} 72. Kd3 {[%clk 0:00:10]}  h3 {[%clk 0:00:08]} 73. Ke2 {[%clk 0:00:11]}  h2 {[%clk 0:00:09]} 74. Ke1 {[%clk 0:00:12]}  h1=Q+ {[%clk 0:00:09]} 0-1


[Site "https://www.chess.com"]